Workbook

Sheet Dessasoreamento
C2: Ministério do Desenvolvimento Regional - MDR
C3: Companhia de Desenvolvimento dos Vales do São Francisco e do Parnaíba
C4: 1ª Superintendência Regional – Montes Claros - MG
B6: DESASSOREAMENTO DO CANAL DE CHAMADA DO RIO SÃO FRANCISCO ATÉ A ESTAÇÃO DE BOMBEAMENTO PRINCIPAL DO PERÍMETRO DE IRRIGAÇÃO JAÍBA, LOCALIZADO NO MUNICÍPIO DE JAÍBA, ESTADO DE MINAS GERAIS.
B8: Item | C8: Discriminação | D8: Un. | E8: Quant. | F8: Valor (R$) | I8: BDI | K8: Percentual
F9: Unit. | G9: Total | I9: =SES_Serviços!D33 -> 25.47
B10: 01 | C10: INSTALAÇÕES PRELIMINARES
B11: 01.01 | C11: Mobilização | D11: Un. | E11: 1 | F11: =ROUND(I11*(1+$I$9/100),2) -> 55364.7 | G11: =ROUND(E11*F11,2) -> 55364.7 | I11: =CPU!I28 -> 44125.844 | K11: =G11/$G$28 -> 0.01854445084
B12: 01.02 | C12: Desmobilização | D12: Un. | E12: 1 | F12: =ROUND(I12*(1+$I$9/100),2) -> 55364.7 | G12: =ROUND(E12*F12,2) -> 55364.7 | I12: =CPU!I28 -> 44125.844 | K12: =G12/$G$28 -> 0.01854445084
B13: 01.03 | C13: Placa de identificação de obra - Fornecimento e instalação- Código SINAPI: 74209 | D13: m² | E13: 4.5 | F13: =ROUND(I13*(1+$I$9/100),2) -> 385 | G13: =ROUND(E13*F13,2) -> 1732.5 | I13: 306.85 | K13: =G13/$G$28 -> 0.00058030227
B14: 01.04 | C14: Administração local | D14: Un. | E14: 1 | F14: =ROUND(I14*(1+$I$9/100),2) -> 60725.37 | G14: =ROUND(E14*F14,2) -> 60725.37 | I14: =CPU!X56 -> 48398.32
B15: 01.05 | C15: Veículo leve tipo hatch 1.4 Flex (85 cv) ou superior | D15: mês | E15: 8 | F15: =ROUND(I15*(1+$I$9/100),2) -> 2612.24 | G15: =ROUND(E15*F15,2) -> 20897.92 | I15: 2081.96 | K15: =G15/$G$28 -> 0.006999775131
B16: 02 | C16: LIMPEZA E DESASSOREAMENTO | K16: 0
B17: 02.01 | C17: ESCAVAÇÃO CARGA E TRANSPORTE DE MAT. 1ª CAT. DMT 50 A 200M SICRO 5502109 | D17: m³ | E17: 54211.53 | F17: =ROUND(I17*(1+$I$9/100),2) -> 4.34 | G17: =ROUND(E17*F17,2) -> 235278.04 | I17: 3.46 | K17: 0.07880656894
B18: 02.02 | C18: COMPACTAÇÃO DE ATERROS A 100% PROCTOR NORMAL - SICRO 5502978 | D18: m³ | E18: 43369.22 | F18: 3.68 | G18: =ROUND(E18*F18,2) -> 159598.73 | I18: 2.93 | K18: 0.05345772312
B19: 02.03 | C19: DRAGAGEM com draga de sucção e recalque-bomba de 1350kw e cortador de 170kw sicro 1917623 | D19: m³ | E19: 88314.44 | F19: 19.86 | G19: 1753924.78 | I19: 15.83 | K19: 0.5874785173
B20: 02.04 | C20: Fornecimento e assentamento de TUBO CORRUGADO PEAD, PAREDE DUPLA, INTERNA LISA, JEI, DN/DI 600 MM. Para sifao de decantação do bota fora - SINAPI 41782 e 90747 | D20: m | E20: 50 | F20: 560.66 | G20: 28033 | I20: =CPU!I111 -> 446.846 | K20: 0.009389675922 | S20: =46800/4 -> 11700
B21: 02.05 | C21: Dreno longitudinal profundo SICRO 2003843 | D21: m | E21: 300 | F21: 234.74 | G21: 70422 | I21: 187.09 | K21: 0.0235879056 | S21: =S20*5 -> 58500
B22: 02.06 | C22: Limpeza e preparo de bota fora SICRO 5502985 | D22: m² | E22: 90000 | F22: 0.49 | G22: 44100 | I22: 0.39
B23: 02.07 | C23: Manutenção de caminho de serviço CPU | D23: Un. | E23: 1 | F23: 20918.31 | G23: 20918.31 | I23: =CPU!I85 -> 16671.96 | K23: =G23/$G$28 -> 0.007006604778
B24: 02.08 | C24: Derrocagem subaquáticaca de mat. 3ª cat. Carga limpeza- plat. Com clamshell- flutuante e batelão rebocado de 100t montado na obra- DMT de 1200 a 1400m SICRO 1716611 | D24: m³ | E24: 4000 | F24: 105.08 | G24: 420320 | I24: 83.75 | K24: =G24/$G$28 -> 0.1407865224
B25: 02.09 | C25: ESCAVAÇÃO CARGA E TRANSPORTE DE MAT. 1ª CAT. DMT 1000 A 1200M SICRO 5502114 | D25: m³ | E25: 6000 | F25: =ROUND(I25*(1+$I$9/100),2) -> 6.19 | G25: =ROUND(E25*F25,2) -> 37140 | I25: 4.93
B26: 03 | C26: SERVIÇOS DE BATIMETRIA
B27: 03.01 | C27: Levantamento batimétrico | D27: dias | E27: 10 | F27: =ROUND(I27*(1+$I$9/100),2) -> 2169.3 | G27: =ROUND(E27*F27,2) -> 21693 | I27: =CPU!I143 -> 1728.942893 | K27: =G27/$G$28 -> 0.007266087817
B28: TOTAL DE SERVIÇOS c/BDI (25,47) - Sem Desoneração | G28: =SUM(G11:G27) -> 2985513.05 | K28: =G28/$G$28 -> 1
B29: PREÇOS BÁSICOS SICRO MÊS 01/2019 | J29: =100*83.25 -> 8325 | K29: =J29*1.2468 -> 10379.61
G30: Custo m³ | H30: R$
G32: Paraopeba/2014 | H32: 30
G34: Calculado | H34: =G28/E19 -> 33.80549149
B35: PREÇOS BÁSICOS SINAPI MÊS 08/2019
E40: =46800/4*6 -> 70200 | F40: =64914.44-46800 -> 18114.44
E41: =E40+F40 -> 88314.44

Sheet SES_Serviços
B2: DETALHAMENTO DO BDI - SERVIÇOS - SEM DESONERAÇÃO
B5: Item | C5: Descrição dos Serviços | D5: % | E5: %
D6: PV | E6: CD
B8: 1 | C8: ADMINISTRAÇÃO CENTRAL | E8: 6.18
B9: 1.1 | C9: ESCRITÓRIO CENTRAL
B10: 1.2 | C10: VIAGENS
B11: 1.3 | C11: OUTROS
B13: 2 | C13: IMPOSTOS E TAXAS | D13: =SUM(D14:D17) -> 8.65 | E13: =SUM(E14:E17) -> 10.82
B14: 2.1 | C14: ISS | D14: 5 | E14: =ROUND(D14*1.2515,2) -> 6.26
B15: 2.2 | C15: PIS | D15: 0.65 | E15: =ROUND(D15*1.2515,2) -> 0.81
B16: 2.3 | C16: Cofins | D16: 3 | E16: =ROUND(D16*1.2515,2) -> 3.75
B17: 2.4
B19: 3 | C19: TAXA DE RISCO | E19: 0.9
B20: 3.1 | C20: SEGURO | E20: 0.3
B21: 3.2 | C21: RISCO | E21: 0.3
B22: 3.3 | C22: GARANTIA | E22: 0.3
G23: =25.86-25.47 -> 0.39
B24: 4 | C24: DESPESAS FINANCEIRAS | E24: 0.98
B26: 5 | C26: LUCRO | E26: 6 | N26: =0.51-0.39 -> 0.12
C28: BDI - CALCULADO | E28: =ROUND((((1+(E8+E19)/100)*(1+E24/100)*(1+E26/100)/(1-D13/100)-1)*100),2) -> 25.47
B31: BDI = ((1+((AC+S+R+G)/100))x(1+DF/100)x(1+L/100)/(1-I/100)-1)*100
B33: BDI (CALCULADO): | D33: =ROUND((((1+((E8+E19)/100))*(1+E24/100)*(1+E26/100))/(1-D13/100)-1)*100,2) -> 25.47
B35: Para o preenchimento da proposta deve-se utilizar o valor de ISS da Prefeitura Local.
A37: BDI EM CONFORMIDADE COM OS ACÓRDÃOS Nº 2369/2011 e ACÓRDÃO Nº 2.622/2013 - TCU - PLENÁRIO

Sheet CPU
B2: CODEVASF | C2: COMPOSIÇÃO DE PREÇO UNITÁRIO
B3: OBRA: | H3: DATA:
B4: SERVIÇO : Mobilização/ Desmobilização | H4: UNIDADE: | I4: vb
B5: EQUIPAMENTO
B6: DISCRIMINAÇÃO | C6: UNIDADE | D6: QUANT. | E6: PROD | F6: IMPROD | G6: P.UNIT. PROD | H6: P.UNIT. IMPR | I6: P.TOTAL
B7: CAMINHAO CAVALO MECANICO C/ CARRETA PRANCHA CAP 20T (INCL MANUT/OPERACAO) - Código SICRO 9665 | C7: CHP | D7: 140 | E7: 1 | G7: 229.5749 | I7: =D7*E7*G7+D7*F7*H7 -> 32140.486 | O7: =4*1200 -> 4800
B8: CAMINHÃO BASCULANTE 10 M3, TRUCADO CABINE SIMPLES, PESO BRUTO TOTAL 23.000 KG, CARGA ÚTIL MÁXIMA 15.935 KG - Código 9592 | C8: CHP | D8: 70 | E8: 1 | G8: 171.2194 | I8: =D8*E8*G8+D8*F8*H8 -> 11985.358 | O8: =O7/50 -> 96
I9: =D9*E9*G9+D9*F9*H9 -> 0
B10: SUB-TOTAL | I10: =SUM(I7:I9) -> 44125.844
B11: MATERIAL
B12: DISCRIMINAÇÃO | C12: UNIDADE | D12: QUANT. | H12: P.UNIT. | I12: P.TOTAL
I13: =D13*H13 -> 0
I14: =D14*H14 -> 0
B15: SUB-TOTAL | I15: =SUM(I13:I14) -> 0
B16: SERVIÇOS - COMPOSIÇÕES AUXILIARES
B17: DISCRIMINAÇÃO | C17: UNIDADE | D17: QUANT. | H17: P.UNIT. | I17: P.TOTAL
I18: =D18*H18 -> 0 | P18: =1200/50 -> 24 | R18: =P18*4 -> 96
B19: SUB-TOTAL | I19: =SUM(I18:I18) -> 0
B20: MÃO DE OBRA
B21: DISCRIMINAÇÃO | C21: UNIDADE | D21: QUANT. | H21: P.UNIT. | I21: P.TOTAL
I22: =D22*H22 -> 0
I23: =D23*H23 -> 0
B24: SUB-TOTAL | I24: =SUM(I22:I23) -> 0
B25: PRODUÇÃO DA EQUIPE | C25: 1 | D25: CUSTO | I25: =I24+I19+I15+I10 -> 44125.844
B26: 120 | I26: =I25/C25 -> 44125.844
B27: BDI % | I27: 1
B28: TOTAL DO SERVIÇO - R$ | I28: =I26*I27 -> 44125.844
B29: CODEVASF | C29: COMPOSIÇÃO DE PREÇO UNITÁRIO
B30: OBRA: | H30: DATA:
B31: SERVIÇO : Administração local | H31: UNIDADE: | I31: mês
B32: EQUIPAMENTO
B33: DISCRIMINAÇÃO | C33: UNIDADE | D33: QUANT. | E33: PROD | F33: IMPROD | G33: P.UNIT. PROD | H33: P.UNIT. IMPR | I33: P.TOTAL
I34: =G34*D34 -> 0
I35: =G35*D35 -> 0
I36: =SUM(I34:I35) -> 0
B37: MATERIAL
B38: DISCRIMINAÇÃO | C38: UNIDADE | D38: QUANT. | H38: P.UNIT. | I38: P.TOTAL
B39: Telefone | C39: min | D39: 300 | H39: 0.83 | I39: =ROUND(D39*H39,2) -> 249
B40: Energia elétrica | C40: kwh | D40: 400 | H40: 0.81 | I40: =ROUND(D40*H40,2) -> 324 | Y40: =H40*D40 -> 324
B41: Material escritório obra | C41: mês | D41: 1 | H41: 280 | I41: =D41*H41 -> 280
B42: Material de limpeza | C42: mês | D42: 1 | H42: 120 | I42: =D42*H42 -> 120
B43: SUB-TOTAL | I43: =SUM(I39:I42) -> 973
B44: SERVIÇOS - COMPOSIÇÕES AUXILIARES
B45: DISCRIMINAÇÃO | C45: UNIDADE | D45: QUANT. | H45: P.UNIT. | I45: P.TOTAL
I46: =D46*H46 -> 0
B47: SUB-TOTAL | I47: =SUM(I46:I46) -> 0
B48: MÃO DE OBRA
B49: DISCRIMINAÇÃO | C49: UNIDADE | D49: QUANT. | H49: P.UNIT. | I49: P.TOTAL
B50: Auxiliar de escritorio SINAPI 40812 | C50: mês | D50: 1 | H50: 2773.08 | I50: =D50*H50 -> 2773.08
B51: Vigia | C51: mês | D51: 1 | H51: 2303.71 | I51: =D51*H51 -> 2303.71
B52: SUB-TOTAL | I52: =SUM(I50:I51) -> 5076.79
B53: PRODUÇÃO DA EQUIPE | C53: 1 | D53: CUSTO | I53: =I52+I47+I43+I36 -> 6049.79
B54: TOTAL - R$ | I54: =I53/C53 -> 6049.79
B55: BDI % | I55: 1
B56: TOTAL DO SERVIÇO - R$ | I56: =I54*I55 -> 6049.79 | X56: =I56*8 -> 48398.32
B58: CODEVASF | C58: COMPOSIÇÃO DE PREÇO UNITÁRIO | Y58: L
B59: OBRA: | H59: DATA:
B60: SERVIÇO : Manutenção de caminho de serviço | H60: UNIDADE: | I60: vb
B61: EQUIPAMENTO
B62: DISCRIMINAÇÃO | C62: UNIDADE | D62: QUANT. | E62: PROD | F62: IMPROD | G62: P.UNIT. PROD | H62: P.UNIT. IMPR | I62: P.TOTAL
B63: MOTONIVELADORA POTÊNCIA BÁSICA LÍQUIDA (PRIMEIRA MARCHA) 125 HP, PESO BRUTO 13032 KG, LARGURA DA LÂMINA DE 3,7 M (INCL MANUT/OPERACAO)- Código SINAPI: 5932 | C63: h | D63: 20 | E63: 1 | G63: 149.04 | I63: =G63*D63 -> 2980.8
B64: PÁ CARREGADEIRA SOBRE RODAS, POTÊNCIA LÍQUIDA 128 HP, CAPACIDADE DA CAÇAMBA 1,7 A 2,8 M3, PESO OPERACIONAL 11632 KG (INCL MANUT/OPERACAO) - Código SINAPI: 5940 | C64: h | D64: 12 | E64: 1 | G64: 136.89 | I64: =G64*D64 -> 1642.68
B65: CAMINHÃO PIPA 10.000 L TRUCADO, PESO BRUTO TOTAL 23.000 KG, CARGA ÚTIL MÁXIMA 15.935 KG, DISTÂNCIA ENTRE EIXOS 4,8 M, POTÊNCIA 230 CV, INCLUSIVE TANQUE DE AÇO PARA TRANSPORTE DE ÁGUA C/ BARRA ESPARGIDORA (INCL MANUT/OPERACAO)- Código SINAPI: 5901 | C65: h | D65: 72 | E65: 1 | G65: 167.34 | I65: =G65*D65 -> 12048.48 | N65: =D65/24 -> 3
B66: SUB-TOTAL | I66: =SUM(I63:I65) -> 16671.96
B67: MATERIAL
B68: DISCRIMINAÇÃO | C68: UNIDADE | D68: QUANT. | H68: P.UNIT. | I68: P.TOTAL | N68: =3*24 -> 72
I70: =D70*H70 -> 0
I71: =D71*H71 -> 0 | N71: 2.5
B72: SUB-TOTAL | I72: =SUM(I69:I71) -> 0 | N72: =2.5*24 -> 60
B73: SERVIÇOS - COMPOSIÇÕES AUXILIARES | R73: =4*24 -> 96
B74: DISCRIMINAÇÃO | C74: UNIDADE | D74: QUANT. | H74: P.UNIT. | I74: P.TOTAL
I75: =D75*H75 -> 0
B76: SUB-TOTAL | I76: =SUM(I75:I75) -> 0
B77: MÃO DE OBRA
B78: DISCRIMINAÇÃO | C78: UNIDADE | D78: QUANT. | H78: P.UNIT. | I78: P.TOTAL
I79: =D79*H79 -> 0
I80: =D80*H80 -> 0
B81: SUB-TOTAL | I81: =SUM(I79:I80) -> 0
B82: PRODUÇÃO DA EQUIPE | C82: 1 | D82: CUSTO | I82: =I81+I76+I72+I66 -> 16671.96
B83: TOTAL - R$ | I83: =I82/C82 -> 16671.96
B84: BDI % | I84: 1
B85: TOTAL DO SERVIÇO - R$ | I85: =I83*I84 -> 16671.96
B86: CODEVASF | C86: COMPOSIÇÃO DE PREÇO UNITÁRIO
B87: OBRA: | H87: DATA:
B88: SERVIÇO :Fornecimento e assentamento de TUBO CORRUGADO PEAD, PAREDE DUPLA, INTERNA LISA, JEI, DN/DI 600 MM. Para sifao de decantação do bota fora - SINAPI 41782 e 90747 | H88: UNIDADE: | I88: m2
B89: EQUIPAMENTO
B90: DISCRIMINAÇÃO | C90: UNIDADE | D90: QUANT. | E90: PROD | F90: IMPROD | G90: P.UNIT. PROD | H90: P.UNIT. IMPR | I90: P.TOTAL
B91: ESCAVADEIRA HIDRÁULICA SOBRE ESTEIRAS, CAÇAMBA 0,80 M3, PESO OPERACIONAL 17 T, POTENCIA BRUTA 111 HP - CHP DIURNO. AF_06/2014 | C91: CHP/CHI | D91: 1 | E91: 0.0422 | F91: 0.0262 | G91: 132.43 | H91: 51.74 | I91: =G91*D91 -> 132.43 | O91: =0.004/3 -> 0.001333333333
I92: =ROUND((D92*E92*G92+D92*F92*H92),2) -> 0
O93: =O91*2 -> 0.002666666667
B94: SUB-TOTAL | I94: =SUM(I92:I93) -> 0
B95: MATERIAL
B96: DISCRIMINAÇÃO | C96: UNIDADE | D96: QUANT. | H96: P.UNIT. | I96: P.TOTAL
B97: TUBO CORRUGADO PEAD, PAREDE DUPLA, INTERNA LISA, JEI, DN/DI 600 MM, PARA SANEAMENTO | C97: M | D97: 1.05 | H97: 423.72 | I97: =D97*H97 -> 444.906 | N97: horas | O97: =100 -> 100
B98: SUB-TOTAL | I98: =SUM(I97:I97) -> 444.906 | N98: area bota fora | O98: =25000 -> 25000
B99: SERVIÇOS - COMPOSIÇÕES AUXILIARES
B100: DISCRIMINAÇÃO | C100: UNIDADE | D100: QUANT. | H100: P.UNIT. | I100: P.TOTAL | M100: m2/horas | O100: =O98/O97 -> 250
I101: =D101*H101 -> 0
B102: SUB-TOTAL | I102: =SUM(I101:I101) -> 0 | M102: m2 | O102: =1/250 -> 0.004
B103: MÃO DE OBRA
B104: DISCRIMINAÇÃO | C104: UNIDADE | D104: QUANT. | H104: P.UNIT. | I104: P.TOTAL
B105: ASSENTADOR DE TUBOS COM ENCARGOS COMPLEMENTARES | C105: H | D105: 0.1301 | H105: 19.89
B106: SERVENTE COM ENCARGOS COMPLEMENTARES | C106: H | D106: 0.1301 | H106: 14.88 | I106: =ROUND((D106*H106),2) -> 1.94
B107: SUB-TOTAL | I107: =SUM(I106:I106) -> 1.94
B108: PRODUÇÃO DA EQUIPE | C108: 1 | D108: CUSTO | I108: =I107+I102+I98+I94 -> 446.846
B109: TOTAL - R$ | I109: =I108/C108 -> 446.846
B110: BDI % | I110: 1
B111: TOTAL DO SERVIÇO - R$ | I111: =I109*I110 -> 446.846
B112: CODEVASF | C112: COMPOSIÇÃO DE PREÇO UNITÁRIO
B113: OBRA: | H113: DATA:
B114: SERVIÇO : Levantamento batimétrico | H114: UNIDADE: | I114: dia
B115: EQUIPAMENTO | AD115: 1000 | AE115: 50 | AF115: =AE115*AD115 -> 50000
B116: DISCRIMINAÇÃO | C116: UNIDADE | D116: QUANT. | E116: PROD | F116: IMPROD | G116: P.UNIT. PROD | H116: P.UNIT. IMPR | I116: P.TOTAL
B117: Equipamento de Ecobatimetria | C117: mês | D117: 1 | E117: 1 | F117: 0 | G117: 978.64 | H117: 0 | I117: =D117*E117*G117+D117*F117*H117 -> 978.64 | R117: =20/30 -> 0.6666666667
B118: Barco | C118: mês | D118: 1 | E118: 1 | F118: 0 | G118: 955.54 | H118: 0 | I118: =D118*E118*G118+D118*F118*H118 -> 955.54
B119: Veículo tipo Pick Up | C119: mês | D119: 1 | E119: 1 | F119: 0 | G119: 5377.23 | H119: 0 | I119: =D119*E119*G119+D119*F119*H119 -> 5377.23
B120: SUB-TOTAL | I120: =SUM(I117:I119) -> 7311.41
B121: MATERIAL
B122: DISCRIMINAÇÃO | C122: UNIDADE | D122: QUANT. | H122: P.UNIT. | I122: P.TOTAL
B123: Plantas e relatórios | C123: gl | D123: 1 | H123: 2450 | I123: =D123*H123 -> 2450
B124: SUB-TOTAL | I124: =SUM(I123:I123) -> 2450
B125: SERVIÇOS - COMPOSIÇÕES AUXILIARES
B126: DISCRIMINAÇÃO | C126: UNIDADE | D126: QUANT. | H126: P.UNIT. | I126: P.TOTAL
B127: Estadia e alimentação até 04 pessoas | C127: gl | D127: 1 | H127: 9083.35 | I127: =D127*H127 -> 9083.35 | Q127: =60*4*20 -> 4800 | T127: =110*30*4 -> 13200
B128: SUB-TOTAL | I128: =SUM(I127:I127) -> 9083.35 | Q128: =50*20*4 -> 4000
B129: MÃO DE OBRA | Q129: =Q128+Q127 -> 8800
B130: DISCRIMINAÇÃO | C130: UNIDADE | D130: QUANT. | H130: P.UNIT. | I130: P.TOTAL
B131: Coordenador Geral/campo | C131: mês | D131: 0.1 | H131: 8201.6 | I131: =D131*H131 -> 820.16
B132: Operador Ecobatimetro | C132: mês | D132: 1 | H132: 4246.88 | I132: 4246.88
B133: Barqueiro | C133: mês | D133: 1 | H133: 1705.44 | I133: 1705.44
B134: Ajudante | C134: mês | D134: 1 | H134: 1223.2 | I134: 1223.2
B135: Cadista/Calculista | C135: mês | D135: 0.25 | H135: 3616.8 | I135: 904.2 | Q135: =60*4*30 -> 7200
I136: 0
B137: Subtotal | I137: =SUM(I131:I135) -> 8899.88
B138: Encargos Sociais | D138: 0.7679 | I138: =D138*I137 -> 6834.217852
B139: SUB-TOTAL | I139: =I137+I138 -> 15734.09785
B140: PRODUÇÃO DA EQUIPE | C140: 20 | D140: CUSTO | I140: =I139+I128+I124+I120 -> 34578.85785
B141: TOTAL - R$ | I141: =I140/C140 -> 1728.942893
B142: BDI % | I142: 1
B143: TOTAL DO SERVIÇO - R$ | I143: =I141*I142 -> 1728.942893

Sheet Plan1 (hidden)
A2: MINISTÉRIO DA INTEGRAÇÃO NACIONAL
A3: Companhia de Desenvolvimento dos Vales do São Francisco e do Parnaíba
A4: 1ª Superintendência Regional - Montes Claros - Minas Gerais
A6: OBRA: Execução de obras e serviços de desassoreamento do canal de chamada do rio São Francisco até a estação de bombeamento principal do Perímetro de Irrigação Jaíba, localizado no município de Jaíba, no estado de Minas Gerais..
A9: BOLETIM DE MEDIÇÃO N.º 01 | E9: CONTRATADA: CONSTRUTORA E DRAGAGEM PARAOPEBA LTDA.
A10: R$ | B10: =#REF! ->  | E10: CONTRATO Nº: 1.127.00.2014 - PROCESSO Nº: 59510.001491/2014-11
E11: ADITIVO PRAZO:
A12: PERÍODO DOS SERVIÇOS: 17/08/2014 a 03/09/2014 | E12: VALOR R$: 1.822.461,60 - NOTA DE EMPENHO Nº: 2014NE0963
A15: ITEM | B15: DISCRIMINAÇÃO | C15: UNID. | D15: DADOS DO CONTRATO
D16: QUANT. | E16: PREÇO UNITÁRIO | F16: VALOR TOTAL | K16: Percentual
A18: 01. | B18: INSTALAÇÕES PRELIMINARES
A19: 01.01 | B19: Mobilização | C19: vb | D19: 1 | E19: 23500 | F19: =ROUND(D19*E19,2) -> 23500 | K19: =F19/$F$31 -> 0.005842510965
A20: 01.02 | B20: Desmobilização | C20: vb | D20: 1 | E20: 23500 | F20: =ROUND(D20*E20,2) -> 23500 | J20: =160/22 -> 7.272727273 | K20: =F20/$F$31 -> 0.005842510965
A21: 01.03 | B21: Placa de identificação de obra - Fornecimento e instalação | C21: m² | D21: 12 | E21: 263.6 | F21: =ROUND(D21*E21,2) -> 3163.2 | K21: 0.0007864268376
A22: 01.04 | B22: Administração local | C22: mês | D22: 5 | E22: 2800 | F22: =ROUND(D22*E22,2) -> 14000 | J22: =J20/2 -> 3.636363636 | K22: 0.00348064483
A23: 02. | B23: LIMPEZA E DESASSOREAMENTO | K23: 0
A24: 02.01 | B24: Regularização Leito Estradal | C24: m² | D24: 48000 | E24: 0.16 | F24: =ROUND(D24*E24,2) -> 7680 | J24: 3.6 | K24: 0.001909382307
A25: 02.02 | B25: Revestimento de estrada, inclusive escavação e carga de mat. 1 cat (cascalho) | C25: m³ | D25: =6000*4*0.2 -> 4800 | E25: 8 | F25: =ROUND(D25*E25,2) -> 38400 | J25: =J20*4 -> 29.09090909 | K25: 0.009546911534
A26: 02.03 | B26: Transporte local - Momento Extraordinário de Transporte - Encascalhamento | C26: m³ x km | D26: =D25*25 -> 120000 | E26: 2 | F26: 240000 | J26: =5*3.34 -> 16.7 | K26: 0.05966819709
A27: 02.04 | B27: Escavação de material submerso | C27: m³ | D27: 150000 | E27: 8.45 | F27: 1267500 | J27: =J26 -> 16.7 | K27: 0.3151226659
A28: 02.05 | B28: Transporte de material escavado até bota-fora (Momento Extraordinário Transporte) | C28: m³ x km | D28: =3*D27 -> 450000 | E28: 5 | F28: 2250000 | K28: 0.5593893477
A29: 02.06 | B29: Espalhamento de material em bota-fora | C29: m³ | D29: =D27 -> 150000 | E29: 0.9 | F29: 135000 | K29: 0.03356336086
A30: 02.07 | B30: Manutenção de caminho de serviço | C30: mês | D30: 5 | E30: 3900 | F30: 19500 | H30: Paraopeba | I30: =F31/D27 -> 26.81495467 | K30: 0.004848041014
A31: VALOR TOTAL | F31: =SUM(F19:F30) -> 4022243.2 | H31: Calculado | I31: =Dessasoreamento!G28/Dessasoreamento!E19 -> 33.80549149 | K31: 1
A32: Fiscalização | E32: 1ª Gerência Regional de Irrigação
H33: Diferença | I33: =I31/I30 -> 1.260695456
A35: Em ___/___/___ | E35: Em ___/___/___

Sheet Cronograma
A1: CRONOGRAMA FÍSISCO-FINANCEIRO
C2: VALOR DO CONVENIO: | E2: =Dessasoreamento!G28 -> 2985513.05
A3: =Dessasoreamento!B6 -> DESASSOREAMENTO DO CANAL DE CHAMADA DO RIO SÃO FRANCISCO ATÉ A ESTAÇÃO DE BOMBEAMENTO PRINCIPAL DO PERÍMETRO DE IRRIGAÇÃO JAÍBA, LOCALIZADO NO MUNICÍPIO DE JAÍBA, ESTADO DE MINAS GERAIS. | H3: PRAZO: 240 DIAS
A5: ITEM | B5: ETAPAS/DESCRIÇAO | C5: FISICO/ FINANCEIRO | D5: TOTAL ETAPAS | E5: MÊS 1 | F5: MÊS 2 | G5: MÊS 3 | H5: MÊS 4 | I5: MÊS 5 | J5: MÊS 6 | K5: MÊS 7 | L5: MÊS 8
A6: =Dessasoreamento!B11 -> 01.01 | B6: =Dessasoreamento!C11 -> Mobilização | C6: FISICO | D6: =D7/$E$2 -> 0.01854445084 | E6: 1 | F6: 0 | G6: 0 | H6: 0 | I6: 0 | J6: 0 | K6: 0 | L6: 0 | M6: =SUM(E6:L6) -> 1
C7: FINANCEIRO | D7: =Dessasoreamento!G11 -> 55364.7 | E7: =D7*E6 -> 55364.7 | F7: =D7*F6 -> 0 | G7: =D7*G6 -> 0 | H7: =D7*H6 -> 0 | I7: =D7*I6 -> 0 | J7: =D7*J6 -> 0 | K7: =D7*K6 -> 0 | L7: =D7*L6 -> 0
A8: =Dessasoreamento!B12 -> 01.02 | B8: =Dessasoreamento!C12 -> Desmobilização | C8: FISICO | D8: =D9/$E$2 -> 0.01854445084 | E8: 0 | F8: 0 | G8: 0 | H8: 0 | I8: 0 | J8: 0 | K8: 0 | L8: 1 | M8: =SUM(E8:L8) -> 1
C9: FINANCEIRO | D9: =Dessasoreamento!G12 -> 55364.7 | E9: =D9*E8 -> 0 | F9: =D9*F8 -> 0 | G9: =D9*G8 -> 0 | H9: =D9*H8 -> 0 | I9: =D9*I8 -> 0 | J9: =D9*J8 -> 0 | K9: =D9*K8 -> 0 | L9: =D9*L8 -> 55364.7
A10: =Dessasoreamento!B13 -> 01.03 | B10: =Dessasoreamento!C13 -> Placa de identificação de obra - Fornecimento e instalação- Código SINAPI: 74209 | C10: FISICO | D10: =D11/$E$2 -> 0.00058030227 | E10: 1 | F10: 0 | G10: 0 | H10: 0 | I10: 0 | J10: 0 | K10: 0 | L10: 0 | M10: =SUM(E10:L10) -> 1
C11: FINANCEIRO | D11: =Dessasoreamento!G13 -> 1732.5 | E11: =D11*E10 -> 1732.5 | F11: =D11*F10 -> 0 | G11: =D11*G10 -> 0 | H11: =D11*H10 -> 0 | I11: =D11*I10 -> 0 | J11: =D11*J10 -> 0 | K11: =D11*K10 -> 0 | L11: =D11*L10 -> 0
A12: =Dessasoreamento!B14 -> 01.04 | B12: =Dessasoreamento!C14 -> Administração local | C12: FISICO | D12: =D13/$E$2 -> 0.02034001158 | E12: 0.125 | F12: 0.125 | G12: 0.125 | H12: 0.125 | I12: 0.125 | J12: 0.125 | K12: 0.125 | L12: 0.125 | M12: =SUM(E12:L12) -> 1
C13: FINANCEIRO | D13: =Dessasoreamento!G14 -> 60725.37 | E13: =D13*E12 -> 7590.67125 | F13: =D13*F12 -> 7590.67125 | G13: =D13*G12 -> 7590.67125 | H13: =D13*H12 -> 7590.67125 | I13: =D13*I12 -> 7590.67125 | J13: =D13*J12 -> 7590.67125 | K13: =D13*K12 -> 7590.67125 | L13: =D13*L12 -> 7590.67125
A14: =Dessasoreamento!B15 -> 01.05 | B14: =Dessasoreamento!C15 -> Veículo leve tipo hatch 1.4 Flex (85 cv) ou superior | C14: FISICO | D14: =D15/$E$2 -> 0.006999775131 | E14: 0.125 | F14: 0.125 | G14: 0.125 | H14: 0.125 | I14: 0.125 | J14: 0.125 | K14: 0.125 | L14: 0.125 | M14: =SUM(E14:L14) -> 1
C15: FINANCEIRO | D15: =Dessasoreamento!G15 -> 20897.92 | E15: =D15*E14 -> 2612.24 | F15: =D15*F14 -> 2612.24 | G15: =D15*G14 -> 2612.24 | H15: =D15*H14 -> 2612.24 | I15: =D15*I14 -> 2612.24 | J15: =D15*J14 -> 2612.24 | K15: =D15*K14 -> 2612.24 | L15: =D15*L14 -> 2612.24
A16: 02.01 | B16: =Dessasoreamento!C17 -> ESCAVAÇÃO CARGA E TRANSPORTE DE MAT. 1ª CAT. DMT 50 A 200M SICRO 5502109 | C16: FISICO | D16: =D17/$E$2 -> 0.07880656894 | E16: 0.5 | F16: 0.5 | G16: 0 | H16: 0 | I16: 0 | J16: 0 | K16: 0 | L16: 0 | M16: =SUM(E16:L16) -> 1
C17: FINANCEIRO | D17: =Dessasoreamento!G17 -> 235278.04 | E17: =D17*E16 -> 117639.02 | F17: =D17*F16 -> 117639.02 | G17: =D17*G16 -> 0 | H17: =D17*H16 -> 0 | I17: =D17*I16 -> 0 | J17: =D17*J16 -> 0 | K17: =D17*K16 -> 0 | L17: =D17*L16 -> 0
A18: 02.02 | B18: =Dessasoreamento!C18 -> COMPACTAÇÃO DE ATERROS A 100% PROCTOR NORMAL - SICRO 5502978 | C18: FISICO | D18: =D19/$E$2 -> 0.05345772312 | E18: 0.5 | F18: 0.5 | G18: 0 | H18: 0 | I18: 0 | J18: 0 | K18: 0 | L18: 0 | M18: =SUM(E18:L18) -> 1
C19: FINANCEIRO | D19: =Dessasoreamento!G18 -> 159598.73 | E19: =D19*E18 -> 79799.365 | F19: =D19*F18 -> 79799.365 | G19: =D19*G18 -> 0 | H19: =D19*H18 -> 0 | I19: =D19*I18 -> 0 | J19: =D19*J18 -> 0 | K19: =D19*K18 -> 0 | L19: =D19*L18 -> 0
A20: 02.03 | B20: =Dessasoreamento!C19 -> DRAGAGEM com draga de sucção e recalque-bomba de 1350kw e cortador de 170kw sicro 1917623 | C20: FISICO | D20: =D21/$E$2 -> 0.5874785173 | E20: 0.125 | F20: 0.125 | G20: 0.125 | H20: 0.125 | I20: 0.125 | J20: 0.125 | K20: 0.125 | L20: 0.125 | M20: =SUM(E20:L20) -> 1
C21: FINANCEIRO | D21: =Dessasoreamento!G19 -> 1753924.78 | E21: =D21*E20 -> 219240.5975 | F21: =D21*F20 -> 219240.5975 | G21: =D21*G20 -> 219240.5975 | H21: =D21*H20 -> 219240.5975 | I21: =D21*I20 -> 219240.5975 | J21: =D21*J20 -> 219240.5975 | K21: =D21*K20 -> 219240.5975 | L21: =D21*L20 -> 219240.5975
A22: 02.04 | B22: =Dessasoreamento!C20 -> Fornecimento e assentamento de TUBO CORRUGADO PEAD, PAREDE DUPLA, INTERNA LISA, JEI, DN/DI 600 MM. Para sifao de decantação do bota fora - SINAPI 41782 e 90747 | C22: FISICO | D22: =D23/$E$2 -> 0.009389675922 | E22: 0.5 | F22: 0.5 | G22: 0 | H22: 0 | I22: 0 | J22: 0 | K22: 0 | L22: 0 | M22: =SUM(E22:L22) -> 1
C23: FINANCEIRO | D23: =Dessasoreamento!G20 -> 28033 | E23: =D23*E22 -> 14016.5 | F23: =D23*F22 -> 14016.5 | G23: =D23*G22 -> 0 | H23: =D23*H22 -> 0 | I23: =D23*I22 -> 0 | J23: =D23*J22 -> 0 | K23: =D23*K22 -> 0 | L23: =D23*L22 -> 0
A24: 02.05 | B24: =Dessasoreamento!C21 -> Dreno longitudinal profundo SICRO 2003843 | C24: FISICO | D24: =D25/$E$2 -> 0.0235879056 | E24: 0.5 | F24: 0.5 | G24: 0 | H24: 0 | I24: 0 | J24: 0 | K24: 0 | L24: 0 | M24: =SUM(E24:L24) -> 1
C25: FINANCEIRO | D25: =Dessasoreamento!G21 -> 70422 | E25: =D25*E24 -> 35211 | F25: =D25*F24 -> 35211 | G25: =D25*G24 -> 0 | H25: =D25*H24 -> 0 | I25: =D25*I24 -> 0 | J25: =D25*J24 -> 0 | K25: =D25*K24 -> 0 | L25: =D25*L24 -> 0
A26: 02.06 | B26: =Dessasoreamento!C22 -> Limpeza e preparo de bota fora SICRO 5502985 | C26: FISICO | D26: =D27/$E$2 -> 0.01477133051 | E26: 1 | F26: 0 | G26: 0 | H26: 0 | I26: 0 | J26: 0 | K26: 0 | L26: 0 | M26: =SUM(E26:L26) -> 1
C27: FINANCEIRO | D27: =Dessasoreamento!G22 -> 44100 | E27: =D27*E26 -> 44100 | F27: =D27*F26 -> 0 | G27: =D27*G26 -> 0 | H27: =D27*H26 -> 0 | I27: =D27*I26 -> 0 | J27: =D27*J26 -> 0 | K27: =D27*K26 -> 0 | L27: =D27*L26 -> 0
A28: 02.07 | B28: =Dessasoreamento!C23 -> Manutenção de caminho de serviço CPU | C28: FISICO | D28: =D29/$E$2 -> 0.007006604778 | E28: 0.5 | F28: 0 | G28: 0 | H28: 0 | I28: 0 | J28: 0 | K28: 0 | L28: 0.5 | M28: =SUM(E28:L28) -> 1
C29: FINANCEIRO | D29: =Dessasoreamento!G23 -> 20918.31 | E29: =D29*E28 -> 10459.155 | F29: =D29*F28 -> 0 | G29: =D29*G28 -> 0 | H29: =D29*H28 -> 0 | I29: =D29*I28 -> 0 | J29: =D29*J28 -> 0 | K29: =D29*K28 -> 0 | L29: =D29*L28 -> 10459.155
A30: 02.08 | B30: =Dessasoreamento!C24 -> Derrocagem subaquáticaca de mat. 3ª cat. Carga limpeza- plat. Com clamshell- flutuante e batelão rebocado de 100t montado na obra- DMT de 1200 a 1400m SICRO 1716611 | C30: FISICO | D30: =D31/$E$2 -> 0.1407865224 | E30: 0 | F30: 0 | G30: 0 | H30: 0 | I30: 0 | J30: 0 | K30: 0 | L30: 1 | M30: =SUM(E30:L30) -> 1
C31: FINANCEIRO | D31: =Dessasoreamento!G24 -> 420320 | E31: =D31*E30 -> 0 | F31: =D31*F30 -> 0 | G31: =D31*G30 -> 0 | H31: =D31*H30 -> 0 | I31: =D31*I30 -> 0 | J31: =D31*J30 -> 0 | K31: =D31*K30 -> 0 | L31: =D31*L30 -> 420320
A32: 02.09 | B32: =Dessasoreamento!C25 -> ESCAVAÇÃO CARGA E TRANSPORTE DE MAT. 1ª CAT. DMT 1000 A 1200M SICRO 5502114 | C32: FISICO | D32: =D33/$E$2 -> 0.0124400729 | E32: 0 | F32: 0 | G32: 0 | H32: 0 | I32: 0 | J32: 0 | K32: 0 | L32: 1 | M32: =SUM(E32:L32) -> 1
C33: FINANCEIRO | D33: =Dessasoreamento!G25 -> 37140 | E33: =D33*E32 -> 0 | F33: =D33*F32 -> 0 | G33: =D33*G32 -> 0 | H33: =D33*H32 -> 0 | I33: =D33*I32 -> 0 | J33: =D33*J32 -> 0 | K33: =D33*K32 -> 0 | L33: =D33*L32 -> 37140
A34: 03.01 | B34: =Dessasoreamento!C27 -> Levantamento batimétrico | C34: FISICO | D34: =D35/$E$2 -> 0.007266087817 | E34: 0.5 | F34: 0 | G34: 0 | H34: 0 | I34: 0 | J34: 0 | K34: 0 | L34: 0.5 | M34: =SUM(E34:L34) -> 1
C35: FINANCEIRO | D35: =Dessasoreamento!G27 -> 21693 | E35: =D35*E34 -> 10846.5 | F35: =D35*F34 -> 0 | G35: =D35*G34 -> 0 | H35: =D35*H34 -> 0 | I35: =D35*I34 -> 0 | J35: =D35*J34 -> 0 | K35: =D35*K34 -> 0 | L35: =D35*L34 -> 10846.5
A36: TOTAL | C36: FISICO | D36: =D14+D12+D10+D6+D8+D16+D18+D20+D22+D24+D26+D28+D30+D32+D34 -> 1 | E36: =(E13+E11+E9+E7+E15+E17+E19+E21+E23+E25+E27+E29+E31+E33+E35)/E2 -> 0.2005056547 | F36: =(F13+F11+F9+F7+F15+F17+F19+F21+F23+F25+F27+F29+F31+F33+F35)/E2 -> 0.1594732248 | G36: =(G13+G11+G9+G7+G15+G17+G19+G21+G23+G25+G27+G29+G31+G33+G35)/E2 -> 0.076852288 | H36: =(H15+H13+H11+H9+H7+H17+H19+H21+H23+H25+H27+H29+H31+H33+H35)/E2 -> 0.076852288 | I36: =(I15+I13+I11+I9+I7+I17+I19+I21+I23+I25+I27+I29+I31+I33+I35)/E2 -> 0.076852288 | J36: =(J15+J13+J11+J9+J7+J17+J19+J21+J23+J25+J27+J29+J31+J33+J35)/E2 -> 0.076852288 | K36: =(K15+K13+K11+K9+K7+K17+K19+K21+K23+K25+K27+K29+K31+K33+K35)/E2 -> 0.076852288 | L36: =(L15+L13+L11+L9+L7+L17+L19+L21+L23+L25+L27+L29+L31+L33+L35)/E2 -> 0.2557596805 | M36: =SUM(E36:L36) -> 1
C37: FINANCEIRO | D37: =D15+D13+D11+D9+D7+D17+D19+D21+D23+D25+D27+D29+D31+D33+D35 -> 2985513.05 | E37: =E13+E11+E9+E7+E15+E17+E19+E21+E23+E25+E27+E29+E31+E33+E35 -> 598612.2488 | F37: =F13+F11+F9+F7+F15+F17+F19+F21+F23+F25+F27+F29+F31+F33+F35 -> 476109.3938 | G37: =G13+G11+G9+G7+G15+G17+G19+G21+G23+G25+G27+G29+G31+G33+G35 -> 229443.5088 | H37: 229443.5088 | I37: 229443.5088 | J37: 229443.5088 | K37: 229443.5088 | L37: 763573.8638 | M37: =SUM(E37:L37) -> 2985513.05
L39: OBSERVAÇÕES:
A45: CRONOGRAMA GERADO AUTOMATICAMENTE COM A PLANILHA
